bitfinex-derivatives/quotes_BNBF0:USTF0_20250609
["timestamp","ask_amount","ask_price","bid_price","bid_amount"]
[1749490853530,1.10296456,659.18,658.32,0.30380362]
[1749490853731,1.10296456,659.17,658.32,0.30380362]
[1749490853929,1.10296456,659.16,658.32,0.30380362]
[1749490854130,1.10296456,659.23,658.32,0.30380362]
[1749490854333,1.10296456,659.22,658.32,0.30380362]
[1749490854534,1.10296456,659.21,658.32,0.30380362]
[1749490854732,1.10296456,659.2,658.32,0.30380362]
[1749490855033,1.10296456,659.19,658.32,0.30380362]
[1749490855230,1.10296456,659.18,658.32,0.30380362]
[1749490855431,1.10296456,659.23,658.32,0.30380362]
[1749490855629,1.10296456,659.22,658.32,0.30380362]
[1749490855830,1.10296456,659.21,658.32,0.30380362]
[1749490856030,1.10296456,659.2,658.32,0.30380362]
[1749490856229,1.10296456,659.23,658.32,0.30380362]
[1749490857537,0.26408351,659.24,658.32,0.30380362]
[1749490893461,0.26408351,659.24,658.33,3.77350532]
[1749490893662,0.26408351,659.24,658.34,0.30379439]
[1749490894390,0.26408351,659.24,658.37,3.77350532]
[1749490894562,0.26408351,659.24,658.37,4.07728586]
[1749490895164,0.26408351,659.24,658.38,3.77350532]
[1749490895666,0.26408351,659.24,658.37,4.07728586]
[1749490897068,0.26408351,659.24,658.41,3.77350532]
[1749490897468,0.26408351,659.24,658.44,3.77350532]
[1749490899668,0.26408351,659.24,658.43,3.77350532]
[1749490900668,0.26408351,659.24,658.37,0.30378054]
[1749490900669,0.26408351,659.24,658.46,3.77350532]
[1749490900974,0.26408351,659.24,658.47,3.77350532]
[1749490901376,0.26408351,659.24,658.46,3.77350532]
[1749490901874,0.26408351,659.24,658.48,3.77350532]
[1749490902270,0.26408351,659.24,658.45,3.77350532]
[1749490903671,0.26408351,659.24,658.37,0.30378054]
[1749490903672,0.26408351,659.24,658.4,3.77350532]
[1749490917689,0.26408351,659.24,658.39,3.77350532]
[1749490918585,0.26408351,659.24,658.4,3.77350532]
[1749490919782,0.26408351,659.24,658.46,3.77350532]
[1749490920785,0.26408351,659.24,658.55,3.77350532]
[1749490921890,0.26408351,659.24,658.5,3.77350532]
[1749490925091,0.26408351,659.24,658.51,3.77350532]
[1749490925790,0.26408351,659.24,658.46,3.77350532]
[1749490927596,0.26408351,659.24,658.47,3.77350532]
[1749490928090,0.26408351,659.24,658.44,3.77350532]
[1749490928896,0.26408351,659.24,658.45,3.77350532]
[1749490929396,0.26408351,659.24,658.37,0.30378054]
[1749490932994,0.26408351,659.24,658.37,4.07728586]
[1749490935300,0.26408351,659.24,658.37,0.30378054]
[1749490935700,0.26408351,659.24,658.39,3.77350532]
[1749490936296,0.26408351,659.24,658.4,3.77350532]
[1749490936700,0.26408351,659.24,658.39,3.77350532]
[1749490938302,0.26408351,659.24,658.41,3.77350532]
[1749490939199,0.26408351,659.24,658.49,3.77350532]
[1749490939701,0.26408351,659.24,658.47,3.77350532]
[1749490941500,0.26408351,659.24,658.48,3.77350532]
[1749490941897,0.26408351,659.24,658.49,3.77350532]
[1749490942600,0.26408351,659.24,658.48,3.77350532]
[1749490943199,0.26408351,659.24,658.45,3.77350532]
[1749490943804,0.26408351,659.24,658.46,3.77350532]
[1749490944704,0.26408351,659.24,658.48,3.77350532]
[1749490946506,0.26408351,659.24,658.46,3.77350532]
[1749490947906,0.26408351,659.24,658.43,3.77350532]
[1749490948705,0.26408351,659.24,658.37,4.07728586]
[1749490949607,0.26408351,659.24,658.37,0.30378054]
[1749490966922,0.26408351,659.24,658.37,4.07728586]
[1749490967422,0.26408351,659.24,658.44,3.77350532]
[1749490968725,0.26408351,659.24,658.42,3.77350532]
[1749490969326,0.26408351,659.24,658.41,3.77350532]
[1749490971126,0.26408351,659.24,658.37,0.30378054]
[1749491001054,1.10224405,659.42,658.37,0.30378054]
[1749491001257,0.26408451,659.16,658.37,0.30378054]
[1749491043486,0.26408451,659.16,658.37,0.30378054]
[1749491065801,1.10224405,659.42,658.37,0.30378054]
[1749491065998,0.26407048,659.23,658.37,0.30378054]
[1749491098623,0.26407048,659.23,658.39,3.77350532]
[1749491099524,0.8,659.22,658.39,3.77350532]
[1749491100021,0.8,659.22,658.43,3.77350532]
[1749491101426,0.8,659.22,658.57,3.77350532]
[1749491101722,0.8,659.22,658.51,3.77350532]
[1749491106629,0.8,659.22,658.37,0.30378054]
[1749491133142,0.8,659.22,658.57,3.77350532]
[1749491133347,0.26405946,659.39,658.57,3.77350532]
[1749491133546,0.26405946,659.39,658.56,3.77350532]
[1749491133947,0.26405946,659.39,658.37,0.30378054]
[1749491133948,0.26405946,659.39,658.48,3.77350532]
[1749491134247,0.26405946,659.39,658.49,0.30372518]
[1749491136643,0.798,659.38,658.49,0.30372518]
[1749491146950,0.798,659.38,658.49,4.0772305]
[1749491149853,0.798,659.38,658.55,3.77350532]
[1749491150057,0.798,659.38,658.56,0.3036929]
[1749491151155,0.798,659.38,658.57,3.77350532]
[1749491151355,0.798,659.38,658.58,0.30368368]
[1749491162767,0.26401939,659.49,658.58,0.30368368]
[1749491165866,0.811,659.48,658.58,0.30368368]
[1749491177071,0.26398434,659.63,658.58,0.30368368]
[1749491179480,0.629,659.62,658.58,0.30368368]
[1749491186279,0.629,659.62,658.59,3.77350532]
[1749491186481,0.629,659.62,658.61,0.30366985]
[1749491187178,0.629,659.62,658.7,3.77350532]
[1749491187479,0.629,659.62,658.71,0.30362374]
[1749491188480,0.629,659.62,658.71,4.07712906]
[1749491188982,0.629,659.62,658.71,0.30362374]
[1749491190187,0.629,659.62,658.75,3.77350532]
[1749491190481,0.629,659.62,658.76,0.3036007]
[1749491191582,0.629,659.62,658.78,3.77350532]
[1749491191782,0.629,659.62,658.79,0.30358687]
[1749491216514,0.26398434,659.63,658.79,0.30358687]
[1749491219414,0.765,659.62,658.79,0.30358687]
[1749491221623,0.765,659.62,658.8,3.77350532]
[1749491221822,0.765,659.62,658.83,3.77350532]
[1749491223624,0.765,659.62,658.79,0.30358687]
[1749491225522,0.765,659.62,658.79,4.07709219]
[1749491226024,0.765,659.62,658.79,0.30358687]
[1749491231628,0.765,659.62,658.83,3.77350532]
[1749491233530,0.765,659.62,658.85,3.77350532]
[1749491234925,0.765,659.62,658.86,3.77350532]
[1749491236729,0.765,659.62,658.87,3.77350532]
[1749491237226,0.765,659.62,658.79,4.07709219]
[1749491237628,0.765,659.62,658.8,3.77350532]
[1749491238129,0.765,659.62,658.81,3.77350532]
[1749491239330,0.765,659.62,658.82,3.77350532]
[1749491239925,0.765,659.62,658.81,3.77350532]
[1749491240326,0.765,659.62,658.82,3.77350532]
[1749491241833,0.765,659.62,658.79,0.30358687]
[1749491245630,0.765,659.62,658.8,3.77350532]
[1749491247030,0.765,659.62,658.89,3.77350532]
[1749491248937,0.765,659.62,658.88,3.77350532]
[1749491250237,0.765,659.62,658.87,3.77350532]
[1749491252039,0.765,659.62,658.9,3.77350532]
[1749491252441,0.26398434,659.63,658.9,3.77350532]
[1749491252843,0.26398434,659.63,658.89,3.77350532]
[1749491253444,0.26398434,659.63,658.88,3.77350532]
[1749491253942,0.26398434,659.63,658.9,3.77350532]
[1749491255139,0.26398434,659.63,658.79,0.30358687]
[1749491255140,0.26398434,659.63,658.91,3.77350532]
[1749491255745,0.26398434,659.63,658.84,3.77350532]
[1749491256140,0.897,659.62,658.84,3.77350532]
[1749491256648,0.897,659.62,658.86,3.77350532]
[1749491257044,0.897,659.62,658.87,3.77350532]
[1749491259247,0.897,659.62,658.89,3.77350532]
[1749491259743,0.897,659.62,658.84,3.77350532]
[1749491260146,0.897,659.62,658.85,3.77350532]
[1749491260644,0.897,659.62,658.86,3.77350532]
[1749491261444,0.897,659.62,658.79,4.07709219]
[1749491261847,0.897,659.62,658.79,0.30358687]
[1749491265445,0.897,659.62,658.8,3.77350532]
[1749491265645,0.897,659.62,658.81,0.30357766]
[1749491266449,0.897,659.62,658.81,4.07708298]
[1749491267246,0.897,659.62,658.81,0.30357766]
[1749491270949,0.897,659.62,658.81,4.07708298]
[1749491271347,0.897,659.62,658.81,0.30357766]
[1749491271951,0.897,659.62,658.81,4.07708298]
[1749491273755,0.897,659.62,658.81,0.30357766]
[1749491274054,0.897,659.62,658.81,4.07708298]
[1749491274459,0.897,659.62,658.81,0.30357766]
[1749491275057,0.897,659.62,658.81,4.07708298]
[1749491277261,0.897,659.62,658.84,3.77350532]
[1749491277460,0.897,659.62,658.85,0.30355923]
[1749491303185,1.0975014,659.93,658.85,0.30355923]
[1749491303490,0.26385824,659.96,658.85,0.30355923]
[1749491307193,1.067,659.95,658.85,0.30355923]
[1749491311597,1.0975014,659.94,658.85,0.30355923]
[1749491311790,1.0975014,659.93,658.85,0.30355923]
[1749491311995,1.067,659.95,658.85,0.30355923]
[1749491311996,1.0975014,659.92,658.85,0.30355923]
[1749491312192,1.0975014,659.94,658.85,0.30355923]
[1749491312392,1.0975014,659.93,658.85,0.30355923]
[1749491312590,1.0975014,659.92,658.85,0.30355923]
[1749491312895,1.0975014,659.94,658.85,0.30355923]
[1749491313095,1.0975014,659.93,658.85,0.30355923]
[1749491313291,1.0975014,659.92,658.85,0.30355923]
[1749491313496,1.0975014,659.94,658.85,0.30355923]
[1749491313695,1.0975014,659.93,658.85,0.30355923]
[1749491313892,1.0975014,659.92,658.85,0.30355923]
[1749491314195,1.0975014,659.94,658.85,0.30355923]
[1749491314398,1.0975014,659.93,658.85,0.30355923]
[1749491314596,1.0975014,659.92,658.85,0.30355923]
[1749491314800,1.0975014,659.91,658.85,0.30355923]
[1749491314995,1.0975014,659.9,658.85,0.30355923]
[1749491315190,1.0975014,659.89,658.85,0.30355923]
[1749491315392,1.0975014,659.88,658.85,0.30355923]
[1749491315592,1.0975014,659.92,658.93,3.77350532]
[1749491315792,1.0975014,659.91,658.93,3.77350532]
[1749491315994,1.0975014,659.9,658.93,3.77350532]
[1749491316193,1.0975014,659.89,658.93,3.77350532]
[1749491316392,1.0975014,659.88,658.93,3.77350532]
[1749491316598,1.0975014,659.87,658.93,3.77350532]
[1749491316796,1.0975014,659.93,658.93,3.77350532]
[1749491316997,1.0975014,659.92,658.93,3.77350532]
[1749491317194,1.0975014,659.91,658.93,3.77350532]
[1749491317394,1.0975014,659.9,658.94,3.77350532]
[1749491317694,1.0975014,659.89,658.94,3.77350532]
[1749491317895,1.0975014,659.93,658.94,3.77350532]
[1749491318096,1.0975014,659.92,658.94,3.77350532]
[1749491318396,1.0975014,659.91,658.94,3.77350532]
[1749491318595,1.0975014,659.9,658.94,3.77350532]
[1749491318899,1.0975014,659.89,658.94,3.77350532]
[1749491319100,3.8635298,659.93,658.94,3.77350532]
[1749491319296,3.8635298,659.92,658.94,3.77350532]
[1749491319495,3.8635298,659.91,658.93,3.77350532]
[1749491319698,1.62879565,659.9,658.93,3.77350532]
[1749491319902,1.0975014,659.89,658.93,3.77350532]
[1749491320201,3.86355107,659.93,658.93,3.77350532]
[1749491320399,3.33300374,659.92,658.93,3.77350532]
[1749491320602,3.86361362,659.91,658.93,3.77350532]
[1749491320902,2.70831234,659.9,658.93,3.77350532]
[1749491321100,1.0975014,659.89,658.93,3.77350532]
[1749491321299,1.067,659.95,658.92,3.77350532]
[1749491321300,3.86361362,659.94,658.92,3.77350532]
[1749491321603,1.0975014,659.93,658.92,3.77350532]
[1749491321903,1.067,659.95,658.92,3.77350532]
[1749491321904,1.0975014,659.92,658.92,3.77350532]
[1749491322204,2.70727456,659.93,658.92,3.77350532]
[1749491322405,1.067,659.95,658.92,3.77350532]
[1749491322406,3.86249176,659.92,658.92,3.77350532]
[1749491322604,2.70727386,659.91,658.92,3.77350532]
[1749491322809,0.53058642,659.9,658.92,3.77350532]
[1749491323105,1.62808782,659.9,658.92,3.77350532]
[1749491323298,3.86239008,659.94,658.92,3.77350532]
[1749491323503,3.86239008,659.93,658.92,3.77350532]
[1749491323705,3.86049587,659.92,658.92,3.77350532]
[1749491323903,3.86049587,659.91,658.92,3.77350532]
[1749491324101,1.62785641,659.9,658.92,3.77350532]
[1749491324302,3.86026446,659.94,658.92,3.77350532]
[1749491324501,3.86026173,659.93,658.89,3.77350532]
[1749491324802,3.86026173,659.92,658.89,3.77350532]
[1749491325002,3.86026173,659.91,658.89,3.77350532]
[1749491325202,1.62785641,659.9,658.89,3.77350532]
[1749491325505,3.32981806,659.94,658.92,3.77350532]
[1749491325704,2.78098768,659.93,658.92,3.77350532]
[1749491325901,1.067,659.95,658.92,3.77350532]
[1749491325902,3.86012585,659.92,658.92,3.77350532]
[1749491326202,3.86012585,659.91,658.92,3.77350532]
[1749491326403,1.0975014,659.9,658.92,3.77350532]
[1749491326601,3.86007923,659.94,658.92,3.77350532]
[1749491326801,3.85997177,659.93,658.92,3.77350532]
[1749491327007,3.85997598,659.92,658.92,3.77350532]
[1749491327203,1.6277492,659.91,658.85,0.30355923]
[1749491327405,1.0975014,659.9,658.85,0.30355923]
[1749491327601,3.86001713,659.93,658.85,0.30355923]
[1749491327906,2.7806932,659.92,658.85,0.30355923]
[1749491328206,3.86001979,659.91,658.85,0.30355923]
[1749491328403,3.86001979,659.9,658.85,0.30355923]
[1749491328607,3.86001979,659.89,658.85,0.30355923]
[1749491328805,2.70706499,659.88,658.85,0.30355923]
[1749491329009,1.0975014,659.87,658.85,0.30355923]
[1749491329406,2.76230289,659.93,658.85,0.30355923]
[1749491329709,0.53020891,659.92,658.85,0.30355923]
[1749491329908,0.53019724,659.92,658.85,0.30355923]
[1749491330312,0.53019724,659.93,658.85,0.30355923]
[1749491330511,0.53019793,659.93,658.85,0.30355923]
[1749491330809,0.53020162,659.94,658.85,0.30355923]
[1749491331008,1.067,659.95,658.85,0.30355923]
[1749491331211,0.26385824,659.96,658.85,0.30355923]
[1749491331411,1.09844839,659.95,658.85,0.30355923]
[1749491331613,1.09844839,659.94,658.85,0.30355923]
[1749491331809,1.09844839,659.93,658.85,0.30355923]
[1749491332008,1.09844839,659.92,658.85,0.30355923]
[1749491332209,1.09844839,659.91,658.85,0.30355923]
[1749491332409,1.09844839,659.9,658.85,0.30355923]
[1749491332609,1.09844839,659.89,658.85,0.30355923]
[1749491332808,1.09844839,659.88,658.85,0.30355923]
[1749491333009,1.09844839,659.87,658.85,0.30355923]
[1749491333311,1.09844839,659.86,658.85,0.30355923]
[1749491334408,0.98,659.85,658.85,0.30355923]
[1749491334613,3.74127895,659.85,658.85,0.30355923]
[1749491334914,2.76129847,659.84,658.85,0.30355923]
[1749491335210,0.53153509,659.83,658.85,0.30355923]
[1749491336013,0.53150365,659.83,658.85,0.30355923]
[1749491336210,1.6075903,659.83,658.85,0.30355923]
[1749491336409,1.09802224,659.82,658.85,0.30355923]
[1749491336614,1.09802224,659.81,658.85,0.30355923]
[1749491336814,0.531505,659.84,658.85,0.30355923]
[1749491336815,1.09802224,659.8,658.85,0.30355923]
[1749491337015,1.09802224,659.79,658.85,0.30355923]
[1749491337216,1.09802224,659.78,658.85,0.30355923]
[1749491337515,1.09802224,659.77,658.85,0.30355923]
[1749491337715,1.09802224,659.76,658.85,0.30355923]
[1749491337911,1.09802224,659.75,658.85,0.30355923]
[1749491338111,1.09802224,659.84,658.85,0.30355923]
[1749491338313,1.09802224,659.83,658.85,0.30355923]
[1749491338511,1.09802224,659.82,658.85,0.30355923]
[1749491338811,1.09802224,659.81,658.85,0.30355923]
[1749491339015,1.09802224,659.8,658.85,0.30355923]
[1749491339217,1.09802224,659.79,658.85,0.30355923]
[1749491339416,1.09802224,659.78,658.85,0.30355923]
[1749491339714,1.09802224,659.77,658.85,0.30355923]
[1749491340017,1.09802224,659.76,658.85,0.30355923]
[1749491340216,1.09802224,659.84,658.85,0.30355923]
[1749491340521,1.09802224,659.83,658.85,0.30355923]
[1749491340717,1.09802224,659.82,658.85,0.30355923]
[1749491340917,1.09802224,659.81,658.85,0.30355923]
[1749491341118,1.09802224,659.8,658.85,0.30355923]
[1749491341415,1.09802224,659.79,658.85,0.30355923]
[1749491341615,1.09646459,659.84,658.85,0.30355923]
[1749491341814,1.09646459,659.83,658.85,0.30355923]
[1749491342018,1.09646459,659.82,658.85,0.30355923]
[1749491342319,1.09646459,659.81,658.85,0.30355923]
[1749491342519,1.09646459,659.8,658.85,0.30355923]
[1749491342716,1.09646459,659.79,658.85,0.30355923]
[1749491342920,1.09646459,659.78,658.85,0.30355923]
[1749491343118,1.09646459,659.84,658.85,0.30355923]
[1749491343315,1.09646459,659.83,658.85,0.30355923]
[1749491343516,1.09646459,659.82,658.85,0.30355923]
[1749491343820,1.09646459,659.81,658.85,0.30355923]
[1749491344019,1.09646459,659.8,658.85,0.30355923]
[1749491344323,1.09646459,659.79,658.85,0.30355923]
[1749491344622,1.09646459,659.84,658.85,0.30355923]
[1749491344917,1.09646459,659.83,658.85,0.30355923]
[1749491345119,1.09646459,659.82,658.85,0.30355923]
[1749491345319,1.09646459,659.81,658.85,0.30355923]
[1749491345622,1.09646459,659.8,658.85,0.30355923]
[1749491345924,1.09646459,659.84,658.85,0.30355923]
[1749491346122,1.09646459,659.83,658.85,0.30355923]
[1749491346419,1.09646459,659.82,658.85,0.30355923]
[1749491346719,1.09646459,659.81,658.85,0.30355923]
[1749491346922,1.09646459,659.8,658.85,0.30355923]
[1749491347117,1.09646459,659.84,658.85,0.30355923]
[1749491347318,0.98,659.85,658.85,0.30355923]
[1749491347319,1.09646459,659.83,658.85,0.30355923]
[1749491347518,1.09646459,659.82,658.85,0.30355923]
[1749491347723,1.09646459,659.81,658.85,0.30355923]
[1749491347919,1.09646459,659.83,658.85,0.30355923]
[1749491348119,0.98,659.85,658.85,0.30355923]
[1749491348120,1.09646459,659.82,658.85,0.30355923]
[1749491348318,1.09646459,659.81,658.85,0.30355923]
[1749491348522,1.09646459,659.83,658.85,0.30355923]
[1749491348718,1.09646459,659.82,658.85,0.30355923]
[1749491349022,1.09646459,659.81,658.85,0.30355923]
[1749491349222,1.62627132,659.84,658.85,0.30355923]
[1749491349422,1.09646459,659.83,658.85,0.30355923]
[1749491349624,0.98,659.85,658.85,0.30355923]
[1749491349625,1.09646459,659.84,658.85,0.30355923]
[1749491349823,1.09646459,659.83,658.85,0.30355923]
[1749491350023,1.09646459,659.84,658.85,0.30355923]
[1749491350223,1.09646459,659.83,658.85,0.30355923]
[1749491350420,1.09646459,659.84,658.85,0.30355923]
[1749491350619,1.09646459,659.83,658.85,0.30355923]
[1749491350824,1.09646459,659.84,658.85,0.30355923]
[1749491351625,1.09646459,659.83,658.85,0.30355923]
[1749491351825,1.09646459,659.82,658.85,0.30355923]
[1749491352124,1.09646459,659.84,658.85,0.30355923]
[1749491352425,1.09646459,659.83,658.85,0.30355923]
[1749491352624,1.09646459,659.84,658.85,0.30355923]
[1749491352820,1.09646459,659.83,658.85,0.30355923]
[1749491353019,1.09646459,659.84,658.85,0.30355923]
[1749491353222,1.09646459,659.83,658.85,0.30355923]
[1749491353423,1.09646459,659.84,658.85,0.30355923]
[1749491356331,0.98,659.85,658.85,0.30355923]
[1749491356732,1.09646459,659.84,658.85,0.30355923]
[1749491357533,1.62530306,659.84,658.85,0.30355923]
[1749491357934,1.62530417,659.84,658.85,0.30355923]
[1749491358533,1.62488868,659.84,658.85,0.30355923]
[1749491359133,1.09646459,659.84,658.85,0.30355923]
[1749491359338,1.09646459,659.83,658.85,0.30355923]
[1749491359531,1.09646459,659.82,658.85,0.30355923]
[1749491359836,1.09646459,659.83,658.85,0.30355923]
[1749491360031,1.09646459,659.82,658.85,0.30355923]
[1749491360334,1.09646459,659.83,658.85,0.30355923]
[1749491360532,1.09646459,659.82,658.85,0.30355923]
[1749491360735,1.09646459,659.83,658.85,0.30355923]
[1749491360933,1.09646459,659.82,658.85,0.30355923]
[1749491361135,2.69889063,659.84,658.85,0.30355923]
[1749491361332,1.09646459,659.83,658.85,0.30355923]
[1749491361636,1.09646459,659.82,658.85,0.30355923]
[1749491361836,1.09646459,659.81,658.85,0.30355923]
[1749491362033,1.09646459,659.8,658.85,0.30355923]
[1749491362234,1.09646459,659.83,658.85,0.30355923]
[1749491362434,1.09646459,659.82,658.85,0.30355923]
[1749491362634,1.09646459,659.81,658.85,0.30355923]
[1749491362833,1.09646459,659.8,658.85,0.30355923]
[1749491363034,1.09646459,659.79,658.85,0.30355923]
[1749491363233,1.09646459,659.83,658.85,0.30355923]
[1749491363537,1.09646459,659.82,658.85,0.30355923]
[1749491363737,1.09646459,659.81,658.85,0.30355923]
[1749491363936,1.09646459,659.8,658.85,0.30355923]
[1749491364137,1.09646459,659.79,658.85,0.30355923]
[1749491364332,2.6999397,659.84,658.85,0.30355923]
[1749491364533,1.09646459,659.83,658.85,0.30355923]
[1749491364738,1.09646459,659.82,658.85,0.30355923]
[1749491364938,1.09646459,659.81,658.85,0.30355923]
[1749491365139,1.09646459,659.8,658.85,0.30355923]
[1749491365337,1.09646459,659.79,658.85,0.30355923]
[1749491365537,1.09646459,659.78,658.85,0.30355923]
[1749491365834,2.77646184,659.84,658.85,0.30355923]
[1749491366038,1.09646459,659.83,658.85,0.30355923]
[1749491366234,1.09646459,659.82,658.85,0.30355923]
[1749491366434,1.09646459,659.81,658.85,0.30355923]
[1749491366638,1.09646459,659.8,658.85,0.30355923]
[1749491366838,1.09646459,659.79,658.85,0.30355923]
[1749491367039,1.09646459,659.78,658.85,0.30355923]
[1749491367238,1.09646459,659.77,658.85,0.30355923]
[1749491367538,1.09646459,659.76,658.85,0.30355923]
[1749491367837,1.09646459,659.75,658.85,0.30355923]
[1749491368038,1.09646459,659.74,658.85,0.30355923]
[1749491368234,3.8524016,659.83,658.85,0.30355923]
[1749491368539,2.17218,659.82,658.85,0.30355923]
[1749491368839,2.17218,659.81,658.85,0.30355923]
[1749491369037,1.09646459,659.8,658.85,0.30355923]
[1749491369238,1.09646459,659.79,658.85,0.30355923]
[1749491369435,1.09646459,659.78,658.85,0.30355923]
[1749491369635,1.09646459,659.77,658.85,0.30355923]
[1749491369835,1.09646459,659.76,658.85,0.30355923]
[1749491370039,1.09646459,659.75,658.85,0.30355923]
[1749491370336,1.09646459,659.74,658.85,0.30355923]
[1749491370540,1.09646459,659.73,658.85,0.30355923]
[1749491370839,2.17217315,659.81,658.85,0.30355923]
[1749491371040,1.09646459,659.8,658.85,0.30355923]
[1749491371335,1.09646459,659.79,658.85,0.30355923]
[1749491371540,1.09646459,659.78,658.85,0.30355923]
[1749491371735,1.62593816,659.82,658.85,0.30355923]
[1749491371940,1.09646459,659.81,658.85,0.30355923]
[1749491372242,1.09646459,659.8,658.85,0.30355923]
[1749491372435,1.09646459,659.81,658.85,0.30355923]
[1749491372636,1.09646459,659.8,658.85,0.30355923]
[1749491372837,3.85444264,659.83,658.85,0.30355923]
[1749491373039,2.24887725,659.82,658.85,0.30355923]
[1749491373240,2.17297929,659.81,658.85,0.30355923]
[1749491373540,2.17298155,659.8,658.85,0.30355923]
[1749491373740,1.09646459,659.79,658.85,0.30355923]
[1749491373942,1.09646459,659.78,658.85,0.30355923]
[1749491374237,3.85643116,659.83,658.85,0.30355923]
[1749491374435,3.85643116,659.82,658.85,0.30355923]
[1749491374641,3.85720551,659.81,658.85,0.30355923]
[1749491374837,1.07756356,659.8,658.85,0.30355923]
[1749491375142,1.09932157,659.79,658.85,0.30355923]
[1749491375337,1.09932157,659.78,658.85,0.30355923]
[1749491375638,1.09932157,659.77,658.85,0.30355923]
[1749491375837,3.86005846,659.81,658.85,0.30355923]
[1749491376041,2.17688377,659.8,658.85,0.30355923]
[1749491376237,2.17688377,659.79,658.85,0.30355923]
[1749491376436,1.09932157,659.78,658.85,0.30355923]
[1749491376638,3.86047652,659.84,658.85,0.30355923]
[1749491376839,3.86047652,659.83,658.85,0.30355923]
[1749491377038,3.86047652,659.82,658.85,0.30355923]
[1749491377239,3.86047652,659.81,658.85,0.30355923]
[1749491377437,1.09932157,659.8,658.85,0.30355923]
[1749491377638,1.09932157,659.79,658.85,0.30355923]
[1749491377837,1.09932157,659.83,658.85,0.30355923]
[1749491378037,1.07789386,659.84,658.85,0.30355923]
[1749491378038,1.09932157,659.82,658.85,0.30355923]
[1749491378342,1.09932157,659.81,658.85,0.30355923]
[1749491378540,1.09932157,659.8,658.85,0.30355923]
[1749491378739,1.09932157,659.79,658.85,0.30355923]
[1749491379039,1.09932157,659.78,658.85,0.30355923]
[1749491379237,1.09932157,659.95,658.85,0.30355923]
[1749491379440,1.09932157,659.94,658.85,0.30355923]
[1749491379641,1.09932157,659.93,658.85,0.30355923]
[1749491379837,1.09932157,659.92,658.85,0.30355923]
[1749491380137,1.09932157,659.91,658.85,0.30355923]
[1749491380338,1.09932157,659.9,658.85,0.30355923]
[1749491380537,1.09932157,659.89,658.85,0.30355923]
[1749491380738,1.09932157,659.88,658.85,0.30355923]
[1749491380936,1.09932157,659.87,658.85,0.30355923]
[1749491381140,1.09932157,659.86,658.85,0.30355923]
[1749491381338,1.09932157,659.85,658.85,0.30355923]
[1749491381637,1.09932157,659.84,658.85,0.30355923]
[1749491381843,1.09932157,659.83,658.85,0.30355923]
[1749491382141,1.09932157,659.82,658.85,0.30355923]
[1749491382339,1.035,659.89,658.85,0.30355923]
[1749491382340,1.09932157,659.81,658.85,0.30355923]
[1749491382540,1.09932157,659.8,658.85,0.30355923]
[1749491382737,1.60996183,659.87,658.85,0.30355923]
[1749491382738,1.09932157,659.79,658.85,0.30355923]
[1749491382943,1.09932157,659.78,658.85,0.30355923]
[1749491383238,1.09932157,659.77,658.85,0.30355923]
[1749491383442,1.68645921,659.84,658.85,0.30355923]
[1749491383443,1.09932157,659.76,658.85,0.30355923]
[1749491383639,1.09932157,659.75,658.85,0.30355923]
[1749491383940,1.09932157,659.74,658.85,0.30355923]
[1749491384140,1.09932157,659.73,658.85,0.30355923]
[1749491384340,1.09932157,659.72,658.85,0.30355923]
[1749491384640,1.09932157,659.71,658.85,0.30355923]
[1749491384845,1.09932157,659.7,658.85,0.30355923]
[1749491385141,1.09932157,659.69,658.85,0.30355923]
[1749491385344,3.86625068,659.85,658.85,0.30355923]
[1749491385544,3.86625068,659.84,658.85,0.30355923]
[1749491385741,3.86625068,659.83,658.85,0.30355923]
[1749491385941,2.71059226,659.82,658.85,0.30355923]
[1749491386140,1.09932157,659.81,658.85,0.30355923]
[1749491386338,1.09932157,659.8,658.85,0.30355923]
[1749491386541,1.09932157,659.79,658.85,0.30355923]
[1749491386841,1.09932157,659.78,658.85,0.30355923]
[1749491387039,1.09932157,659.77,658.85,0.30355923]
[1749491387242,1.09932157,659.76,658.85,0.30355923]
[1749491387447,1.09932157,659.75,658.85,0.30355923]
[1749491387654,1.09932157,659.74,658.85,0.30355923]
[1749491387847,1.09932157,659.73,658.85,0.30355923]
[1749491388149,1.09932157,659.72,658.85,0.30355923]
[1749491388352,1.09932157,659.71,658.85,0.30355923]
[1749491388547,1.09932157,659.7,658.85,0.30355923]
[1749491388751,1.09932157,659.69,658.85,0.30355923]
[1749491388953,1.09932157,659.68,658.85,0.30355923]
[1749491389153,1.09932157,659.67,658.85,0.30355923]
[1749491389351,1.09932157,659.66,658.85,0.30355923]
[1749491389649,1.09932157,659.65,658.85,0.30355923]
[1749491389953,1.09932157,659.64,658.85,0.30355923]
[1749491390250,1.09932157,659.63,658.85,0.30355923]
[1749491390450,3.87021567,659.81,658.85,0.30355923]
[1749491390651,3.87021567,659.8,658.85,0.30355923]
[1749491390954,3.87021567,659.79,658.85,0.30355923]
[1749491391150,3.87021567,659.78,658.85,0.30355923]
[1749491391350,3.87021567,659.77,658.85,0.30355923]